bitfinex-derivatives/quotes_ETHF0:USTF0_20250604
["timestamp","ask_amount","ask_price","bid_price","bid_amount"]
[1748997533647,10.24111,2590.9,2590.8,0.06705529]
[1748997534340,5.24111,2590.9,2590.8,0.06705529]
[1748997534545,10.06411,2590.9,2590.8,0.06705529]
[1748997535943,16.22128,2590.9,2589.9,1.2754]
[1748997536146,0.77169,2590.0,2589.8,2.03223]
[1748997536342,0.77167,2590.1,2589.9,0.7717]
[1748997536742,0.77167,2590.1,2589.8,1.2605]
[1748997536937,0.77167,2590.1,2589.9,0.7717]
[1748997537144,3.21358927,2590.2,2590.1,0.77165]
[1748997538243,0.00578927,2590.2,2590.1,0.77165]
[1748997538452,0.00578927,2590.2,2590.1,2.06895]
[1748997540955,0.00578927,2590.2,2590.1,7.06895]
[1748997541149,6.2837249,2590.9,2590.8,0.77144]
[1748997541463,3.8215,2591.2,2590.9,0.77138]
[1748997541644,3.97913,2591.2,2590.8,0.06704602]
[1748997541847,3.2078,2591.2,2590.8,0.06704602]
[1748997542049,3.2078,2591.2,2591.1,0.77135]
[1748997542353,0.6287,2591.4,2591.0,0.77136]
[1748997542354,0.00578927,2591.4,2591.0,0.77136]
[1748997542654,0.00578927,2591.4,2591.0,1.248]
[1748997542854,0.77138,2591.0,2590.9,5.4169]
[1748997543548,0.77138,2591.0,2590.9,4.79]
[1748997543855,6.12178927,2591.4,2590.9,0.77139]
[1748997544054,6.12178927,2591.4,2590.9,2.12029]
[1748997544055,0.77133,2591.2,2590.9,2.12029]
[1748997544354,0.77136,2591.1,2590.8,0.83846602]
[1748997544553,0.77139,2591.0,2590.8,0.83846602]
[1748997544754,0.77139,2591.0,2590.8,0.77142]
[1748997545256,6.74878927,2591.4,2590.7,0.77145]
[1748997545454,0.77145,2590.8,2590.6,3.8347]
[1748997545659,0.77153,2590.5,2590.4,4.789]
[1748997546145,0.77153,2590.5,2590.2,1.4316]
[1748997546146,0.77159,2590.3,2590.2,0.66]
[1748997547149,0.77155,2590.5,2590.2,1.43162]
[1748997547660,4.5543,2590.6,2590.2,0.66]
[1748997547863,4.5543,2590.6,2590.2,1.43161]
[1748997548051,4.5543,2590.6,2590.2,0.66]
[1748997548250,0.77159,2590.3,2590.2,0.66]
[1748997550562,0.77159,2590.3,2590.1,4.789]
[1748997550563,0.77161,2590.3,2590.1,4.789]
[1748997550758,0.77162,2590.2,2590.1,5.49574602]
[1748997551258,0.77162,2590.2,2590.1,0.70674602]
[1748997552364,0.77162,2590.2,2590.1,0.06704602]
[1748997552752,1.42302,2590.2,2590.1,0.06704602]
[1748997553462,2.73772,2590.2,2590.1,0.06704602]
[1748997553865,7.73772,2590.2,2590.1,6.02e-06]
[1748997555657,2.73772,2590.2,2590.1,6.02e-06]
[1748997559867,7.52872,2590.2,2590.1,6.02e-06]
[1748997562467,12.52872,2590.2,2590.1,6.02e-06]
[1748997564370,7.52872,2590.2,2590.1,6.02e-06]
[1748997564564,12.52872,2590.2,2590.1,6.02e-06]
[1748997565464,7.52872,2590.2,2590.1,6.02e-06]
[1748997566269,1.42302,2590.2,2590.1,6.02e-06]
[1748997568177,2.69762,2590.2,2590.1,6.02e-06]
[1748997569072,1.42302,2590.2,2590.1,6.02e-06]
[1748997569676,2.69762,2590.2,2590.1,6.02e-06]
[1748997570071,1.42302,2590.2,2590.1,6.02e-06]
[1748997573774,2.74632,2590.2,2590.1,6.02e-06]
[1748997574974,1.42302,2590.2,2590.1,6.02e-06]
[1748997575179,0.77162,2590.2,2590.1,6.02e-06]
[1748997575577,3.97941,2590.3,2590.1,6.02e-06]
[1748997575779,3.97939,2590.3,2590.1,0.77164602]
[1748997576081,3.2078,2590.3,2590.2,1.2455]
[1748997576772,3.2078,2590.3,2590.2,2.01712]
[1748997576968,3.2078,2590.3,2590.2,1.2455]
[1748997577277,3.97939,2590.3,2590.2,1.2455]
[1748997577783,0.77162,2590.2,2590.1,6.02e-06]
[1748997578875,0.77161,2590.3,2590.1,6.02e-06]
[1748997579072,0.77162,2590.2,2590.1,1.29740602]
[1748997579974,0.77162,2590.2,2590.1,6.02e-06]
[1748997580680,13.6035449,2590.2,2590.1,6.02e-06]
[1748997580875,11.87172,2590.2,2590.1,6.02e-06]
[1748997582284,10.52762,2590.2,2590.1,6.02e-06]
[1748997582481,11.87172,2590.2,2590.1,6.02e-06]
[1748997582882,10.94831938,2590.2,2590.1,6.02e-06]
[1748997583183,5.52762,2590.2,2590.1,6.02e-06]
[1748997587082,10.67941938,2590.2,2590.1,6.02e-06]
[1748997587481,15.67941938,2590.2,2590.1,6.02e-06]
[1748997587677,11.84682,2590.2,2590.1,6.02e-06]
[1748997588593,0.77174,2589.8,2589.7,5.29e-06]
[1748997588782,8.73554,2589.8,2589.7,5.29e-06]
[1748997589083,12.57425564,2589.8,2589.7,5.29e-06]
[1748997591484,12.89038431,2589.8,2589.7,5.29e-06]
[1748997592980,9.05166867,2589.8,2589.7,5.29e-06]
[1748997593486,11.80263109,2589.8,2589.7,5.29e-06]
[1748997595484,12.11899443,2589.8,2589.7,5.29e-06]
[1748997595879,3.97954,2589.8,2589.7,5.29e-06]
[1748997597579,5.89214,2589.8,2589.7,5.29e-06]
[1748997597784,4.64044,2589.8,2589.7,5.29e-06]
[1748997598775,5.93544,2589.8,2589.7,5.29e-06]
[1748997599376,1.92963,2589.5,2589.0,1.2861]
[1748997599582,3.97975,2589.1,2589.0,1.2861]
[1748997602284,3.97975,2589.1,2588.8,9.27e-06]
[1748997602285,0.77201,2588.9,2588.8,9.27e-06]
[1748997602788,5.77201,2588.9,2588.8,9.27e-06]
[1748997602983,6.2927,2588.9,2588.0,1.8668]
[1748997603178,1.93071,2588.0,2586.8,3.2078]
[1748997603380,3.2078,2587.4,2586.8,3.2078]
[1748997603696,6.407,2588.1,2587.4,0.77244]
[1748997603697,3.2078,2588.0,2587.4,0.77244]
[1748997603887,0.77232,2587.9,2587.5,2.5434]
[1748997604185,3.21358927,2588.0,2587.6,0.77238]
[1748997604388,0.00578927,2588.0,2587.7,1.3102]
[1748997604687,0.77807927,2588.0,2587.7,1.3102]
[1748997604880,0.77233,2587.9,2587.7,1.3102]
[1748997605482,3.21358927,2588.0,2587.7,6.3102]
[1748997605678,0.00578927,2588.0,2587.9,3.98011]
[1748997605990,3.2078,2588.7,2587.9,3.2078]
[1748997606287,0.77222,2588.2,2588.0,4.757]
[1748997606482,0.77222,2588.2,2588.1,1.2659]
[1748997606888,3.21358927,2588.4,2588.1,6.2659]
[1748997607184,0.77219,2588.3,2588.2,1.3102]
[1748997607384,3.21358927,2588.4,2588.2,1.3102]
[1748997607994,0.00578927,2588.4,2588.3,0.77219]
[1748997608287,0.77207,2588.8,2588.4,0.77215]
[1748997608488,0.77207,2588.8,2588.5,1.235]
[1748997608685,0.77207,2588.7,2588.5,1.235]
[1748997608891,0.77207,2588.7,2588.6,0.6246]
[1748997610181,0.77780927,2588.9,2588.6,0.6246]
[1748997610394,0.00578927,2588.9,2588.7,1.235]
[1748997610588,0.77779927,2588.9,2588.7,1.235]
[1748997610795,0.00578927,2588.9,2588.7,1.235]
[1748997611186,0.00578927,2588.9,2588.8,0.6669]
[1748997611386,0.77779927,2588.9,2588.8,0.6669]
[1748997612593,0.00578927,2588.9,2588.8,0.6669]
[1748997612781,0.77779927,2588.9,2588.8,0.6669]
[1748997613394,0.00578927,2588.9,2588.8,0.6669]
[1748997614297,0.00578927,2588.9,2588.8,6.43894]
[1748997614498,0.00578927,2588.9,2588.8,12.45424]
[1748997616502,0.77779927,2588.9,2588.8,6.6822]
[1748997617203,1.93011,2588.8,2587.8,0.4377]
[1748997617398,0.7723,2588.0,2587.9,0.6205]
[1748997617695,0.7723,2588.0,2587.9,1.9354]
[1748997618703,0.7723,2588.0,2587.9,0.6205]
[1748997618894,0.77234,2587.8,2587.7,0.6717]
[1748997619093,0.7724,2587.6,2587.5,4.758]
[1748997619897,0.77243,2587.5,2587.4,0.62968927]
[1748997620203,0.77243,2587.5,2587.4,0.00578927]
[1748997620400,0.77243,2587.5,2586.8,1.39652]
[1748997620401,3.98023,2587.5,2586.8,0.6239]
[1748997620699,4.758,2587.7,2586.3,0.627]
[1748997620700,3.2078,2587.0,2586.3,0.627]
[1748997620999,3.2078,2587.3,2586.7,3.2078]
[1748997621197,3.2078,2586.8,2586.2,0.6239]
[1748997621499,0.00578927,2586.8,2586.5,3.2078]
[1748997621704,0.00578927,2586.8,2586.6,0.77267]
[1748997622000,0.00578927,2586.8,2586.5,3.98052]
[1748997622300,0.00578927,2586.8,2586.6,4.758]
[1748997622502,0.00578927,2586.8,2586.7,1.2436]
[1748997622896,0.77268,2586.7,2586.2,1.84427927]
[1748997623095,0.77844927,2586.8,2586.3,6.76177]
[1748997623298,0.77267,2586.7,2586.3,6.76177]
[1748997623600,0.77271,2586.6,2586.3,5.989]
[1748997623799,0.00578927,2586.8,2586.3,5.989]
[1748997624105,0.77272,2586.6,2586.3,5.989]
[1748997624304,0.00578927,2586.8,2586.3,5.989]
[1748997624499,0.77272,2586.6,2586.3,5.989]
[1748997624694,0.00578927,2586.8,2586.2,1.84428927]
[1748997624695,0.00578927,2586.8,2586.2,0.44758927]
[1748997624897,0.77273,2586.5,2586.2,0.44758927]
[1748997625205,3.2078,2586.3,2586.2,0.44758927]
[1748997625400,3.2078,2586.3,2586.2,0.00578927]
[1748997625401,3.98059,2586.3,2586.2,0.00578927]
[1748997626298,3.2078,2586.3,2586.2,0.00578927]
[1748997626500,3.2078,2586.6,2586.2,0.00578927]
[1748997626703,0.77275,2586.5,2586.2,3.21358927]
[1748997627003,3.2078,2586.6,2586.3,1.3434]
[1748997627198,0.77267,2586.7,2586.4,0.77276]
[1748997627398,0.77267,2586.7,2586.5,1.3434]
[1748997627599,0.77267,2586.7,2586.5,6.2724]
[1748997627996,0.00578927,2586.8,2586.5,6.2724]
[1748997628203,0.00578927,2586.8,2586.5,5.3673]
[1748997628507,0.77268,2586.7,2586.5,5.3673]
[1748997628698,3.2078,2586.7,2586.5,0.4383]
[1748997629200,0.77842927,2586.8,2586.5,0.4383]
[1748997629503,0.7727,2586.6,2586.5,0.4383]
[1748997629703,1.2824,2586.7,2586.5,0.4383]
[1748997629905,2.05508,2586.7,2586.5,0.4383]
[1748997630205,0.7727,2586.6,2586.5,0.4383]
[1748997630698,4.4902,2586.7,2586.5,0.4383]
[1748997630699,5.26288,2586.7,2586.5,0.4383]
[1748997631398,4.4902,2586.7,2586.5,0.4383]
[1748997631601,3.98047,2586.7,2586.5,0.4383]
[1748997631801,0.7727,2586.6,2586.5,0.4383]
[1748997632000,5.30368,2586.7,2586.5,0.4383]
[1748997632306,0.00578927,2586.8,2586.5,1.21103]
[1748997632503,0.77842927,2586.8,2586.5,0.4383]
[1748997632698,3.9805,2586.6,2586.5,0.4383]
[1748997633094,3.2078,2586.6,2586.5,1.21103]
[1748997633299,1.32898927,2586.8,2586.5,1.21103]
[1748997633501,0.7727,2586.6,2586.5,0.4383]
[1748997633703,3.2078,2586.6,2586.5,0.4383]
[1748997634002,0.77844927,2586.8,2586.5,0.4383]
[1748997634404,0.77267,2586.7,2586.5,0.4383]
[1748997634705,0.7727,2586.6,2586.5,0.4383]
[1748997635007,0.77268,2586.7,2586.5,0.50534602]
[1748997635797,0.00578927,2586.8,2586.5,0.50534602]
[1748997635798,0.7727,2586.6,2586.5,0.50534602]
[1748997636702,3.9805,2586.6,2586.5,0.50534602]
[1748997637110,3.9805,2586.6,2586.5,0.06704602]
[1748997639007,0.7727,2586.6,2586.5,0.06704602]
[1748997639908,5.7727,2586.6,2586.5,0.06704602]
[1748997640506,0.7727,2586.6,2586.5,0.06704602]
[1748997642609,0.77273,2586.5,2586.4,0.00180423]
[1748997642909,5.32173,2586.5,2586.4,0.00180423]
[1748997643306,10.32173,2586.5,2586.4,0.00180423]
[1748997643506,10.32173,2586.5,2586.4,4.23e-06]
[1748997644505,5.32173,2586.5,2586.4,4.23e-06]
[1748997647507,10.25273,2586.5,2586.4,4.23e-06]
[1748997648303,10.25273,2586.5,2586.2,0.00578927]
[1748997648304,0.77279,2586.3,2586.2,3.5e-06]
[1748997649507,2.73719,2586.3,2586.2,3.5e-06]
[1748997649705,0.77303,2585.5,2585.4,0.6432]
[1748997650505,3.2078,2585.9,2585.4,1.41624]
[1748997650807,0.77298,2585.7,2585.5,1.3486]
[1748997651002,0.77295,2585.8,2585.5,5.32941]
[1748997651204,3.2078,2586.1,2585.6,0.77298]
[1748997651410,0.77295,2585.8,2585.7,1.3486]
[1748997653305,3.2078,2586.1,2585.7,6.3486]
[1748997653503,3.2078,2586.4,2585.8,3.2078]
[1748997653708,0.77277,2586.4,2586.1,0.77283]
[1748997654012,0.77279,2586.3,2586.2,5.1389]
[1748997654417,8.14458927,2586.8,2586.2,5.9117]
[1748997654619,0.77277,2586.4,2586.2,5.1389]
[1748997654913,0.77277,2586.4,2586.3,1.2841]
[1748997656216,0.77279,2586.3,2586.2,0.647]
[1748997657218,0.77285,2586.1,2586.0,1.2353]
[1748997657408,0.77288,2586.0,2585.9,6.2312]
[1748997658211,0.77288,2586.0,2585.9,7.4665]
[1748997658411,0.77286,2586.1,2585.9,7.4665]
[1748997658611,0.77288,2586.0,2585.9,7.4665]
[1748997658819,0.77287,2586.1,2585.9,7.4665]
[1748997660612,0.77288,2586.0,2585.9,7.4665]
[1748997661018,0.77287,2586.1,2585.9,7.4665]
[1748997661912,3.2078,2586.5,2585.9,7.4665]
[1748997662219,5.605,2586.7,2586.2,0.77281]
[1748997662519,0.77274,2586.5,2586.4,0.06704602]
[1748997663321,3.2078,2586.6,2586.4,0.06704602]
[1748997663322,0.77271,2586.6,2586.4,0.06704602]
[1748997663528,0.7727,2586.6,2586.5,1.2694]
[1748997663818,0.7727,2586.6,2586.5,1.8927]
[1748997664531,0.00578927,2586.8,2586.5,1.8927]
[1748997664824,3.2078,2586.6,2585.9,0.6606]
[1748997665126,0.77282,2586.2,2586.0,6.33416]
[1748997665326,0.77281,2586.3,2586.0,7.60006]
[1748997665526,0.77281,2586.3,2586.1,0.77284]
[1748997665728,0.77281,2586.3,2586.2,1.2659]
[1748997666028,0.77278,2586.4,2586.2,2.03871]
[1748997666214,0.77278,2586.4,2586.3,1.2659]
[1748997666522,0.77276,2586.4,2586.3,1.2659]
[1748997668519,0.77282,2586.2,2586.1,3.2078]
[1748997668719,0.77285,2586.1,2586.0,5.5603]
[1748997669729,0.77285,2586.1,2586.0,0.6233]
[1748997671728,3.8676,2586.6,2586.0,0.6233]
[1748997671926,0.77283,2586.2,2586.0,1.39617]
[1748997672226,3.8676,2586.6,2586.0,0.6233]
[1748997672227,0.77285,2586.1,2586.0,0.6233]
[1748997672718,0.77283,2586.2,2586.0,1.39615]
[1748997672924,0.77285,2586.1,2586.0,0.6233]
[1748997674625,5.5564,2586.7,2586.0,8.8311]
[1748997674826,0.6194,2586.7,2586.0,0.6233]
[1748997675125,3.9805,2586.6,2586.0,0.6233]
[1748997675326,0.77285,2586.1,2586.0,0.6233]
[1748997675728,0.77285,2586.1,2586.0,5.6233]
[1748997678832,0.77282,2586.2,2586.0,5.6233]
[1748997679035,0.77279,2586.3,2586.0,0.6233]
[1748997679331,0.77279,2586.3,2586.1,0.77285]
[1748997679524,0.77277,2586.4,2586.2,5.71082]
[1748997680833,0.77277,2586.4,2586.2,4.938]
[1748997681028,0.77277,2586.4,2586.2,5.7108]
[1748997681925,0.00578927,2586.8,2586.7,0.77267]
[1748997682137,0.77842927,2586.8,2586.7,4.937]
[1748997682435,0.77267,2586.7,2586.6,3.2078]
[1748997682636,0.77267,2586.7,2586.6,8.1448]
[1748997682934,0.77267,2586.7,2586.6,4.937]
[1748997683729,0.7727,2586.6,2586.5,0.641]
[1748997683931,0.77273,2586.5,2586.4,4.937]
[1748997685640,0.77276,2586.4,2586.3,5.578]
[1748997686642,0.77276,2586.4,2586.3,0.641]
[1748997686843,0.77279,2586.3,2586.2,8.1448]
[1748997687544,2.5523,2586.7,2586.2,8.1448]
[1748997687744,0.77273,2586.5,2586.3,0.77276]
[1748997687939,0.77273,2586.5,2586.3,2.10266]
[1748997689240,0.77276,2586.4,2586.3,6.97166]
[1748997689750,0.77276,2586.4,2586.3,6.1989]
[1748997690245,0.77276,2586.4,2586.3,4.869]
[1748997690858,0.77279,2586.3,2586.2,8.0768]
[1748997691347,0.77279,2586.3,2586.2,8.84962]
[1748997691540,0.77279,2586.3,2586.2,8.0768]
[1748997691743,0.77278,2586.4,2586.2,8.8496]
[1748997693852,0.77276,2586.4,2586.3,0.77277]
[1748997694254,0.77276,2586.4,2586.2,8.0768]
[1748997694555,1.3071,2586.7,2586.2,8.0768]
[1748997694758,0.77271,2586.6,2586.5,0.77272]
[1748997695853,0.77271,2586.6,2586.3,1.2704]
[1748997695854,0.77844927,2586.8,2586.7,0.77267]
[1748997696257,0.77267,2586.7,2586.6,0.77269]
[1748997696851,0.7727,2586.6,2586.5,0.77271]
[1748997697051,0.00578927,2586.8,2586.6,0.77267]
[1748997697255,0.77267,2586.7,2586.6,0.77268]
[1748997697458,0.00578927,2586.8,2586.4,0.6558]
[1748997697656,0.77267,2586.7,2586.6,0.77267]
[1748997697850,0.77844927,2586.8,2586.7,0.77267]
[1748997698150,0.00578927,2586.8,2586.7,0.77267]
[1748997698356,0.00578927,2586.8,2586.7,5.64067]
[1748997698556,0.00578927,2586.8,2586.7,10.64067]
[1748997698752,0.00578927,2586.8,2586.7,12.62517]
[1748997700157,0.6126,2587.4,2587.3,0.77249]
[1748997700354,3.2078,2587.5,2587.4,0.77246]
[1748997700664,3.2078,2587.9,2587.8,0.77234]
[1748997701152,0.00580058,2588.1,2588.0,0.77228]
[1748997702452,0.00580058,2588.1,2587.9,0.77229]
[1748997702655,0.77228,2588.0,2587.9,4.868]
[1748997702855,5.27428,2588.0,2587.9,4.868]
[1748997703058,0.77237,2587.7,2587.6,0.00580058]
[1748997703452,1.2326,2587.9,2587.6,0.00580058]
[1748997703952,0.77234,2587.8,2587.6,0.00580058]
[1748997704451,0.77235,2587.8,2587.6,0.00580058]
[1748997704855,1.2326,2587.9,2587.6,0.00580058]
[1748997705255,2.00493,2587.9,2587.6,0.77819058]
[1748997705458,1.2326,2587.9,2587.6,0.00580058]
[1748997705659,1.2326,2587.9,2587.7,0.77236]
[1748997705957,2.00492,2587.9,2587.6,0.77820058]
[1748997706561,1.2326,2587.9,2587.6,0.00580058]
[1748997706761,0.77237,2587.7,2587.6,0.00580058]
[1748997707865,1.2326,2587.9,2587.6,0.00580058]
[1748997708066,0.77236,2587.8,2587.6,0.00580058]
[1748997708258,0.77237,2587.7,2587.6,0.00580058]
[1748997710260,0.77237,2587.7,2587.6,4.87280058]
[1748997710962,0.77237,2587.7,2587.6,4.9398466]
[1748997711366,0.77235,2587.8,2587.6,5.7122266]
[1748997711564,0.77237,2587.7,2587.6,4.9398466]
[1748997711765,4.502,2588.0,2587.6,4.9398466]
[1748997711964,5.27428,2588.0,2587.8,0.77233]
[1748997712563,5.27429,2588.0,2587.8,0.77232]
[1748997712760,0.77237,2587.7,2587.6,0.0728466]
[1748997713063,3.98017,2587.7,2587.6,0.0728466]
[1748997714364,0.77237,2587.7,2587.6,0.0728466]
[1748997714562,1.3243,2587.9,2587.6,0.0728466]
[1748997714862,0.77237,2587.7,2587.6,0.0728466]
[1748997716165,2.09662,2587.9,2587.6,0.0728466]
[1748997716467,4.502,2588.0,2587.6,0.0728466]
[1748997716680,0.00580058,2588.1,2588.0,0.77228]
[1748997716866,0.00580058,2588.1,2587.7,1.9622]
[1748997717076,0.00580058,2588.1,2587.6,0.0728466]
[1748997717374,0.77237,2587.7,2587.6,4.9388466]
[1748997718369,2.03107,2587.7,2587.6,4.9388466]
[1748997719562,2.03107,2587.7,2587.6,0.0728466]
[1748997722267,2.03107,2587.7,2587.1,3.2078]
[1748997722268,0.77261,2586.9,2586.8,8.7401]
[1748997722471,0.7726,2587.0,2586.8,8.7401]
[1748997722673,0.77252,2587.2,2586.9,0.7726]
[1748997722880,0.6715,2587.2,2586.9,0.7726]
[1748997723068,3.8434,2587.3,2587.2,0.77252]
[1748997723271,0.6356,2587.3,2587.2,0.77252]
[1748997723562,0.6356,2587.3,2587.2,4.857]
[1748997723768,1.40809,2587.3,2587.2,4.857]
[1748997724370,0.77255,2587.1,2587.0,0.00580058]
[1748997728873,0.6356,2587.3,2587.0,0.77837058]
[1748997729577,0.77255,2587.1,2587.0,0.00580058]
[1748997730371,0.77253,2587.2,2587.0,0.00580058]
[1748997731272,0.77255,2587.1,2587.0,0.00580058]
[1748997731685,3.8434,2587.3,2587.0,0.00580058]
[1748997731978,4.61591,2587.3,2587.0,0.77835058]
[1748997732173,3.2078,2587.3,2587.2,0.77252]
[1748997738083,0.4206,2587.5,2587.4,0.77246]
[1748997738283,0.4206,2587.5,2587.4,5.62946]
[1748997738782,0.4206,2587.5,2587.4,6.97106]
[1748997741788,0.4206,2587.5,2587.4,5.62946]
[1748997743992,1.19303,2587.5,2587.4,5.62946]
[1748997744287,0.4206,2587.5,2587.4,5.62946]
[1748997745683,0.4206,2587.5,2587.4,6.98066]
[1748997746485,0.00580058,2588.1,2587.4,11.2082]
[1748997746697,0.00580058,2588.1,2588.0,0.77228]
[1748997746997,0.00580058,2588.1,2588.0,5.62928]
[1748997747192,3.2078,2588.6,2588.5,0.77213]
[1748997747390,1.2887,2588.9,2588.5,0.77213]
[1748997747689,1.2887,2588.9,2588.4,5.62915]
[1748997747997,0.77205,2588.8,2588.6,0.77209]
[1748997748289,1.2887,2588.9,2588.5,0.6429]
[1748997748494,2.06073,2588.9,2588.6,0.77208]
[1748997748886,0.77205,2588.8,2588.6,0.77208]
[1748997749289,0.77209,2588.7,2588.5,0.6429]
[1748997749494,0.77213,2588.5,2588.4,0.00580058]
[1748997749990,2.06983,2588.5,2588.4,0.00580058]
[1748997752395,3.2078,2588.6,2588.4,0.77794058]
[1748997752599,0.77206,2588.8,2588.5,0.77211]
[1748997752800,2.06074,2588.9,2588.4,0.00580058]
[1748997752993,1.2887,2588.9,2588.6,0.77208]
[1748997753390,0.77205,2588.8,2588.6,0.77208]
[1748997753589,1.2887,2588.9,2588.6,0.77208]
[1748997753790,0.77205,2588.8,2588.6,0.77208]
[1748997754089,0.77205,2588.8,2588.5,0.77212]
[1748997754291,2.06073,2588.9,2588.6,0.7721]
[1748997754491,0.77205,2588.8,2588.5,0.77211]
[1748997754689,0.77205,2588.8,2588.5,2.03261]
[1748997755093,0.77205,2588.8,2588.6,0.7721]
[1748997755394,0.77207,2588.8,2588.5,2.03263]
[1748997755991,0.77207,2588.8,2588.6,0.7721]
[1748997756192,0.77207,2588.8,2588.7,4.804]
[1748997757801,2.06073,2588.9,2588.7,4.804]
[1748997758100,2.06073,2588.9,2588.7,5.57606]
[1748997759191,2.06073,2588.9,2588.8,0.77204]
[1748997759192,0.6747,2588.9,2588.8,0.77204]
[1748997759395,3.8825,2588.9,2588.5,0.77212]
[1748997759593,0.77213,2588.5,2588.4,0.0728466]
[1748997759798,0.77213,2588.5,2587.8,4.804]
[1748997759799,5.13808,2588.6,2587.9,0.6664]
[1748997759995,0.77228,2588.0,2587.9,0.6664]
[1748997760702,0.77231,2587.9,2587.8,4.804]
[1748997760894,0.77231,2587.9,2587.7,3.21360058]
[1748997761091,0.77252,2587.3,2587.0,3.98037]
[1748997761293,0.77258,2587.0,2586.9,4.804]
[1748997761496,3.2078,2587.2,2586.6,4.804]
[1748997761497,0.77267,2586.7,2586.6,4.804]
[1748997761710,3.2078,2586.7,2586.4,4.804]
[1748997761906,0.77273,2586.5,2586.4,4.804]
[1748997763118,0.6764,2586.5,2586.2,0.00580058]
[1748997763327,0.77279,2586.3,2586.2,0.00580058]
[1748997763625,3.2078,2586.4,2585.7,3.2078]
[1748997763626,0.77288,2586.0,2585.7,3.2078]
[1748997763815,0.77292,2585.9,2585.8,4.804]
[1748997764215,0.77292,2585.9,2585.7,3.2078]
[1748997764524,1.2933,2586.2,2585.7,8.0138]
[1748997764920,0.7729,2586.0,2585.7,8.0138]
[1748997765320,0.77292,2585.9,2585.7,8.0138]
[1748997765620,1.2933,2586.2,2585.7,8.0138]
[1748997765812,0.77293,2585.9,2585.7,8.0138]
[1748997766012,1.2933,2586.2,2585.7,8.0138]
[1748997766215,0.77288,2586.0,2585.7,8.0138]
[1748997766413,1.2933,2586.2,2585.7,8.0138]
[1748997766817,0.77288,2586.0,2585.7,8.0138]
[1748997767024,0.77294,2585.8,2585.7,8.0138]
[1748997768424,0.773,2585.6,2585.5,4.806]
[1748997770723,0.77307,2585.4,2585.2,38.951]
[1748997770926,0.77307,2585.4,2585.3,4.807]
[1748997771120,1.2769,2585.7,2585.2,38.951]
[1748997771427,3.2078,2585.5,2584.7,8.16953671]
[1748997771621,0.77321,2585.0,2584.7,0.15473671]
[1748997771930,0.7732,2585.0,2584.7,0.15473671]
[1748997772426,0.77321,2584.9,2584.7,0.15473671]
[1748997772728,0.77319,2585.0,2584.7,0.15473671]
[1748997772924,0.77319,2585.0,2584.7,1.40153671]
[1748997773120,3.2078,2585.1,2584.7,6.20953671]
[1748997773332,3.21360058,2585.4,2584.7,6.20953671]
[1748997773528,3.21360058,2585.4,2585.0,3.2078]
[1748997773723,3.21360058,2585.4,2585.1,6.0548]
[1748997773922,0.00580058,2585.4,2585.3,0.77309]
[1748997774425,0.00580058,2585.4,2585.3,2.01989]
[1748997775223,0.00580058,2585.4,2585.3,1.2468]
[1748997775425,0.00580058,2585.4,2585.3,2.01989]
[1748997775927,0.00580058,2585.4,2585.3,5.22769]
[1748997776128,3.2078,2586.1,2586.0,0.77288]
[1748997776429,3.98055,2586.5,2586.2,0.77282]
[1748997776629,3.2078,2587.2,2586.3,2.60043]
[1748997776821,3.2078,2587.2,2587.0,0.77258]
[1748997777022,0.00580058,2587.4,2587.1,4.809]
[1748997777230,0.77827058,2587.4,2587.1,6.0797]
[1748997777429,0.00580058,2587.4,2587.1,6.85223]
[1748997777631,0.00580058,2587.4,2587.2,1.2707]
[1748997778535,0.00580058,2587.4,2587.1,5.4775]
[1748997778839,0.00580058,2587.4,2586.8,4.85080058]
[1748997779029,0.00580058,2587.4,2586.9,1.336]
[1748997779229,0.00580058,2587.4,2586.9,2.10859]
[1748997779426,0.77828058,2587.4,2586.9,2.10859]
[1748997779728,0.00580058,2587.4,2587.0,0.77258]
[1748997780530,0.00580058,2587.4,2586.9,1.336]
[1748997780733,0.00580058,2587.4,2587.0,0.77257]
[1748997781033,0.77828058,2587.4,2587.0,0.77257]
[1748997781230,0.77828058,2587.4,2587.0,2.11537]
[1748997781639,0.00580058,2587.4,2587.0,1.3428]
[1748997781831,0.00580058,2587.4,2586.8,4.85080058]
[1748997782130,0.00580058,2587.4,2587.0,0.77257]
[1748997782730,0.77827058,2587.4,2586.9,1.3428]
[1748997782931,0.77827058,2587.4,2587.0,0.77256]
[1748997783233,0.77249,2587.3,2587.0,0.77256]
[1748997784029,0.77249,2587.3,2587.0,2.07406]
[1748997784329,0.00580058,2587.4,2587.1,0.77255]
[1748997784724,0.00580058,2587.4,2587.2,5.61651]
[1748997785035,0.00580058,2587.4,2587.3,0.77249]
[1748997785428,0.00580058,2587.4,2587.3,2.68679]
[1748997786840,0.00580058,2587.4,2586.9,0.70224602]
[1748997787041,0.77828058,2587.4,2587.2,0.77252]
[1748997787240,0.00580058,2587.4,2587.3,0.77249]
[1748997791037,0.6198,2588.1,2588.0,0.77228]
[1748997791337,4.99336883,2588.7,2588.0,0.77228]
[1748997791338,0.77218,2588.4,2588.2,0.7722]
[1748997791939,5.31055,2588.5,2588.3,0.77219]
[1748997792135,3.8684,2588.5,2588.3,0.77219]
[1748997792338,0.77222,2588.2,2588.1,0.6328]
[1748997792534,0.7722,2588.3,2588.1,1.40505]
[1748997792939,0.77217,2588.4,2588.2,0.77222]
[1748997793135,0.77217,2588.4,2588.1,1.40504]
[1748997793339,5.2013,2588.5,2588.1,1.40504]
[1748997793340,0.77221,2588.3,2588.1,0.6328]
[1748997793546,0.77218,2588.4,2588.1,1.40505]
[1748997794149,0.77219,2588.3,2588.1,1.40505]
[1748997794446,5.2013,2588.5,2588.1,0.6328]
[1748997794746,0.77219,2588.4,2588.1,1.40504]
[1748997794945,5.2013,2588.5,2588.1,0.6328]